[Event "Titled Tuesday Blitz June 27 Late 2023"]
[White "Indjic, Aleksandar"]
[Black "Horvath, Dominik"]
[WhiteFideId "911925"]
[BlackFideId "1642561"]
[WhiteElo "2965"]
[BlackElo "2903"]
[Result "1-0"]
[Round "7"]
[TimeControl "180+2"]
[Date "2023.06.27"]
[WhiteClock "0:00:14"]
[BlackClock "0:00:19"]
[Board "4"]

1. e4 {[%clk 0:03:00]}  c6 {[%clk 0:02:59]} 2. d4 {[%clk 0:02:59]}  d5 {[%clk 0:03:00]} 3. e5 {[%clk 0:02:59]}  Bf5 {[%clk 0:02:59]} 4. h4 {[%clk 0:02:59]}  h5 {[%clk 0:02:48]} 5. Bd3 {[%clk 0:02:58]}  Bxd3 {[%clk 0:02:48]} 6. Qxd3 {[%clk 0:02:59]}  Qa5+ {[%clk 0:02:48]} 7. Nd2 {[%clk 0:02:42]}  e6 {[%clk 0:02:47]} 8. Ne2 {[%clk 0:02:37]}  Ne7 {[%clk 0:02:45]} 9. O-O {[%clk 0:02:36]}  Nf5 {[%clk 0:02:41]} 10. Nf3 {[%clk 0:02:35]}  Qa6 {[%clk 0:02:41]} 11. Qd1 {[%clk 0:02:32]}  c5 {[%clk 0:02:40]} 12. c3 {[%clk 0:01:57]}  Nc6 {[%clk 0:02:38]} 13. Ng3 {[%clk 0:01:56]}  g6 {[%clk 0:02:30]} 14. Nxf5 {[%clk 0:01:55]}  gxf5 {[%clk 0:02:28]} 15. Bg5 {[%clk 0:01:55]}  Rc8 {[%clk 0:02:27]} 16. a3 {[%clk 0:01:53]}  Kd7 {[%clk 0:02:27]} 17. b4 {[%clk 0:01:52]}  cxd4 {[%clk 0:02:25]} 18. cxd4 {[%clk 0:01:52]}  Ne7 {[%clk 0:01:18]} 19. Bf6 {[%clk 0:01:43]}  Rh6 {[%clk 0:01:15]} 20. a4 {[%clk 0:01:40]}  Qc4 {[%clk 0:01:12]} 21. b5 {[%clk 0:01:29]}  Qc2 {[%clk 0:01:09]} 22. Qe1 {[%clk 0:01:28]}  Qc3 {[%clk 0:01:06]} 23. Qe2 {[%clk 0:01:28]}  Rg6 {[%clk 0:01:04]} 24. Bg5 {[%clk 0:01:26]}  Qc2 {[%clk 0:01:02]} 25. Qe3 {[%clk 0:01:08]}  Qc3 {[%clk 0:00:57]} 26. Qf4 {[%clk 0:01:07]}  Rg8 {[%clk 0:00:56]} 27. Rac1 {[%clk 0:01:03]}  Qd3 {[%clk 0:00:52]} 28. Rxc8 {[%clk 0:01:03]}  Kxc8 {[%clk 0:00:45]} 29. Qc1+ {[%clk 0:00:45]}  Kb8 {[%clk 0:00:43]} 30. Rd1 {[%clk 0:00:45]}  Qb3 {[%clk 0:00:40]} 31. Qa1 {[%clk 0:00:40]}  Ng6 {[%clk 0:00:40]} 32. Rb1 {[%clk 0:00:39]}  Qa3 {[%clk 0:00:37]} 33. Qxa3 {[%clk 0:00:23]}  Bxa3 {[%clk 0:00:38]} 34. Rb3 {[%clk 0:00:23]}  Bf8 {[%clk 0:00:39]} 35. g3 {[%clk 0:00:21]}  Bg7 {[%clk 0:00:38]} 36. Rc3 {[%clk 0:00:21]}  Rc8 {[%clk 0:00:33]} 37. Rxc8+ {[%clk 0:00:21]}  Kxc8 {[%clk 0:00:34]} 38. Kf1 {[%clk 0:00:21]}  Bf8 {[%clk 0:00:31]} 39. Ke2 {[%clk 0:00:21]}  a6 {[%clk 0:00:29]} 40. bxa6 {[%clk 0:00:20]}  bxa6 {[%clk 0:00:30]} 41. Bd2 {[%clk 0:00:20]}  Kd7 {[%clk 0:00:27]} 42. Kd3 {[%clk 0:00:20]}  Be7 {[%clk 0:00:24]} 43. Bg5 {[%clk 0:00:19]}  Bf8 {[%clk 0:00:23]} 44. Ng1 {[%clk 0:00:19]}  Bb4 {[%clk 0:00:19]} 45. Ne2 {[%clk 0:00:18]}  Bf8 {[%clk 0:00:20]} 46. Bd2 {[%clk 0:00:18]}  Be7 {[%clk 0:00:20]} 47. Nc1 {[%clk 0:00:17]}  Ba3 {[%clk 0:00:19]} 48. Nb3 {[%clk 0:00:17]}  Kc6 {[%clk 0:00:20]} 49. Ke2 {[%clk 0:00:16]}  Be7 {[%clk 0:00:19]} 50. Kd3 {[%clk 0:00:16]}  Ba3 {[%clk 0:00:19]} 51. Ba5 {[%clk 0:00:16]}  Be7 {[%clk 0:00:19]} 52. Nc1 {[%clk 0:00:14]}  Ba3 {[%clk 0:00:19]} 53. Ne2 {[%clk 0:00:14]}  Be7 {[%clk 0:00:20]} 54. Ke3 {[%clk 0:00:14]}  Bf8 {[%clk 0:00:20]} 55. Kf3 {[%clk 0:00:14]}  Bh6 {[%clk 0:00:20]} 56. Bb4 {[%clk 0:00:13]}  Bg7 {[%clk 0:00:19]} 57. Nf4 {[%clk 0:00:12]}  Nxf4 {[%clk 0:00:19]} 58. Kxf4 {[%clk 0:00:13]}  Bh6+ {[%clk 0:00:20]} 59. Kf3 {[%clk 0:00:13]}  Bg7 {[%clk 0:00:20]} 60. Ke2 {[%clk 0:00:13]}  Bh6 {[%clk 0:00:21]} 61. f4 {[%clk 0:00:13]}  Bg7 {[%clk 0:00:21]} 62. Kd3 {[%clk 0:00:13]}  Bh6 {[%clk 0:00:22]} 63. Kc3 {[%clk 0:00:14]}  Bg7 {[%clk 0:00:23]} 64. Kb3 {[%clk 0:00:14]}  Bh6 {[%clk 0:00:23]} 65. Bc5 {[%clk 0:00:15]}  a5 {[%clk 0:00:20]} 66. Be7 {[%clk 0:00:15]}  Bg7 {[%clk 0:00:20]} 67. Bd8 {[%clk 0:00:14]}  Bf8 {[%clk 0:00:19]} 68. Bxa5 {[%clk 0:00:14]}  Be7 {[%clk 0:00:20]} 69. Kc3 {[%clk 0:00:14]}  Bf8 {[%clk 0:00:21]} 70. Bb4 {[%clk 0:00:14]}  Bg7 {[%clk 0:00:21]} 71. Bc5 {[%clk 0:00:14]}  Bh6 {[%clk 0:00:21]} 72. Kb4 {[%clk 0:00:14]}  Kb7 {[%clk 0:00:19]} 73. Kb5 {[%clk 0:00:14]} 1-0


[Site "https://www.chess.com"]

[Event "Titled Tuesday Blitz June 27 Late 2023"]
[White "Grischuk, Alexander"]
[Black "Erdogmus, Yagiz Kaan"]
[WhiteFideId "4126025"]
[BlackFideId "44599790"]
[WhiteElo "3022"]
[BlackElo "2874"]
[Result "1-0"]
[Round "7"]
[TimeControl "180+2"]
[Date "2023.06.27"]
[WhiteClock "0:00:16"]
[BlackClock "0:00:12"]
[Board "7"]

1. d4 {[%clk 0:03:00]}  Nf6 {[%clk 0:02:59]} 2. Nf3 {[%clk 0:03:01]}  e6 {[%clk 0:02:57]} 3. c4 {[%clk 0:02:57]}  b6 {[%clk 0:02:57]} 4. g3 {[%clk 0:02:57]}  Ba6 {[%clk 0:02:56]} 5. b3 {[%clk 0:02:53]}  Bb4+ {[%clk 0:02:54]} 6. Bd2 {[%clk 0:02:52]}  Be7 {[%clk 0:02:54]} 7. Bg2 {[%clk 0:02:51]}  c6 {[%clk 0:02:53]} 8. O-O {[%clk 0:02:30]}  d5 {[%clk 0:02:52]} 9. Ne5 {[%clk 0:02:27]}  Nfd7 {[%clk 0:02:51]} 10. Nd3 {[%clk 0:02:24]}  dxc4 {[%clk 0:02:43]} 11. Nb4 {[%clk 0:02:23]}  cxb3 {[%clk 0:02:38]} 12. axb3 {[%clk 0:02:12]}  Bb7 {[%clk 0:02:36]} 13. Na3 {[%clk 0:02:12]}  Nf6 {[%clk 0:02:22]} 14. e3 {[%clk 0:02:01]}  Nd5 {[%clk 0:02:13]} 15. Nd3 {[%clk 0:02:02]}  O-O {[%clk 0:02:06]} 16. Nc4 {[%clk 0:02:02]}  Nd7 {[%clk 0:02:06]} 17. b4 {[%clk 0:01:58]}  a6 {[%clk 0:01:36]} 18. Qb3 {[%clk 0:01:53]}  Rc8 {[%clk 0:01:33]} 19. Rfd1 {[%clk 0:01:50]}  N5f6 {[%clk 0:01:08]} 20. e4 {[%clk 0:01:45]}  Re8 {[%clk 0:00:28]} 21. h3 {[%clk 0:01:43]}  Bf8 {[%clk 0:00:27]} 22. Be3 {[%clk 0:01:38]}  h6 {[%clk 0:00:27]} 23. Ra2 {[%clk 0:01:33]}  Ra8 {[%clk 0:00:19]} 24. Bf4 {[%clk 0:01:14]}  Qc8 {[%clk 0:00:17]} 25. Rb2 {[%clk 0:01:06]}  Ra7 {[%clk 0:00:11]} 26. Nd6 {[%clk 0:00:59]}  Bxd6 {[%clk 0:00:10]} 27. Bxd6 {[%clk 0:01:00]}  c5 {[%clk 0:00:08]} 28. bxc5 {[%clk 0:00:58]}  Bxe4 {[%clk 0:00:07]} 29. cxb6 {[%clk 0:00:51]}  Rb7 {[%clk 0:00:06]} 30. Rc1 {[%clk 0:00:28]}  Qa8 {[%clk 0:00:06]} 31. Bxe4 {[%clk 0:00:29]}  Nxe4 {[%clk 0:00:06]} 32. Bc7 {[%clk 0:00:30]}  Nef6 {[%clk 0:00:06]} 33. Nc5 {[%clk 0:00:28]}  Nxc5 {[%clk 0:00:04]} 34. dxc5 {[%clk 0:00:29]}  Nd5 {[%clk 0:00:04]} 35. c6 {[%clk 0:00:27]}  Rxc7 {[%clk 0:00:05]} 36. bxc7 {[%clk 0:00:28]}  Nxc7 {[%clk 0:00:06]} 37. Qb6 {[%clk 0:00:18]}  Nb5 {[%clk 0:00:04]} 38. c7 {[%clk 0:00:16]}  Rc8 {[%clk 0:00:05]} 39. Rd2 {[%clk 0:00:16]}  Kf8 {[%clk 0:00:03]} 40. Rd8+ {[%clk 0:00:14]}  Ke7 {[%clk 0:00:04]} 41. Qc5+ {[%clk 0:00:09]}  Kf6 {[%clk 0:00:04]} 42. Qf8 {[%clk 0:00:10]}  Rxc7 {[%clk 0:00:03]} 43. Rxa8 {[%clk 0:00:09]}  Rxc1+ {[%clk 0:00:03]} 44. Kg2 {[%clk 0:00:09]}  Rc7 {[%clk 0:00:03]} 45. Rxa6 {[%clk 0:00:09]}  h5 {[%clk 0:00:04]} 46. Rb6 {[%clk 0:00:07]}  Nc3 {[%clk 0:00:02]} 47. Qd8+ {[%clk 0:00:07]}  Kg6 {[%clk 0:00:02]} 48. Qxc7 {[%clk 0:00:07]}  Nd5 {[%clk 0:00:03]} 49. Qc2+ {[%clk 0:00:07]}  Kh6 {[%clk 0:00:04]} 50. Rb5 {[%clk 0:00:08]}  g6 {[%clk 0:00:04]} 51. Rxd5 {[%clk 0:00:08]}  exd5 {[%clk 0:00:05]} 52. Qd2+ {[%clk 0:00:09]}  Kg7 {[%clk 0:00:05]} 53. Qxd5 {[%clk 0:00:09]}  g5 {[%clk 0:00:05]} 54. Qxg5+ {[%clk 0:00:09]}  Kf8 {[%clk 0:00:06]} 55. Qxh5 {[%clk 0:00:10]}  f5 {[%clk 0:00:06]} 56. Qh7 {[%clk 0:00:10]}  f4 {[%clk 0:00:05]} 57. gxf4 {[%clk 0:00:10]}  Ke8 {[%clk 0:00:06]} 58. f5 {[%clk 0:00:10]}  Kd8 {[%clk 0:00:07]} 59. f6 {[%clk 0:00:11]}  Kc8 {[%clk 0:00:08]} 60. Qg7 {[%clk 0:00:11]}  Kb8 {[%clk 0:00:09]} 61. h4 {[%clk 0:00:12]}  Ka8 {[%clk 0:00:10]} 62. h5 {[%clk 0:00:13]}  Kb8 {[%clk 0:00:11]} 63. h6 {[%clk 0:00:14]}  Ka8 {[%clk 0:00:12]} 64. h7 {[%clk 0:00:15]}  Kb8 {[%clk 0:00:12]} 65. h8=Q# {[%clk 0:00:16]} 1-0


[Site "https://www.chess.com"]

[Event "Titled Tuesday Blitz June 27 Late 2023"]
[White "Tiglon, Bryce"]
[Black "Korobov, Anton"]
[WhiteFideId "2087456"]
[BlackFideId "14105730"]
[WhiteElo "2808"]
[BlackElo "2984"]
[Result "0-1"]
[Round "7"]
[TimeControl "180+2"]
[Date "2023.06.27"]
[WhiteClock "0:00:03"]
[BlackClock "0:01:30"]
[Board "9"]

1. Nf3 {[%clk 0:03:00]}  d5 {[%clk 0:02:59]} 2. e3 {[%clk 0:03:01]}  Nf6 {[%clk 0:02:58]} 3. d4 {[%clk 0:02:59]}  a6 {[%clk 0:02:57]} 4. b3 {[%clk 0:02:58]}  Bf5 {[%clk 0:02:57]} 5. Bb2 {[%clk 0:02:56]}  e6 {[%clk 0:02:57]} 6. Bd3 {[%clk 0:02:54]}  Bd6 {[%clk 0:02:57]} 7. O-O {[%clk 0:02:52]}  O-O {[%clk 0:02:57]} 8. c4 {[%clk 0:02:51]}  c6 {[%clk 0:02:56]} 9. Bxf5 {[%clk 0:02:45]}  exf5 {[%clk 0:02:56]} 10. cxd5 {[%clk 0:02:46]}  cxd5 {[%clk 0:02:55]} 11. Ba3 {[%clk 0:02:46]}  Nc6 {[%clk 0:02:55]} 12. Bxd6 {[%clk 0:02:40]}  Qxd6 {[%clk 0:02:56]} 13. Nc3 {[%clk 0:02:40]}  Rfe8 {[%clk 0:02:56]} 14. Rc1 {[%clk 0:02:39]}  Rad8 {[%clk 0:02:55]} 15. Ne2 {[%clk 0:02:31]}  Ne4 {[%clk 0:02:54]} 16. Nf4 {[%clk 0:02:31]}  g5 {[%clk 0:02:47]} 17. Nd3 {[%clk 0:02:31]}  f6 {[%clk 0:02:48]} 18. Nc5 {[%clk 0:02:28]}  Re7 {[%clk 0:02:47]} 19. Qc2 {[%clk 0:02:21]}  Nb4 {[%clk 0:02:43]} 20. Qe2 {[%clk 0:02:18]}  f4 {[%clk 0:02:39]} 21. a3 {[%clk 0:01:54]}  Nc6 {[%clk 0:02:36]} 22. b4 {[%clk 0:01:52]}  fxe3 {[%clk 0:02:23]} 23. fxe3 {[%clk 0:01:53]}  Rde8 {[%clk 0:02:19]} 24. Qc2 {[%clk 0:01:47]}  Nd8 {[%clk 0:02:12]} 25. Qb3 {[%clk 0:00:59]}  Nf7 {[%clk 0:02:09]} 26. Nxe4 {[%clk 0:00:53]}  Rxe4 {[%clk 0:02:09]} 27. Rc3 {[%clk 0:00:52]}  Qe6 {[%clk 0:02:07]} 28. Kf2 {[%clk 0:00:22]}  Nd6 {[%clk 0:01:55]} 29. Nd2 {[%clk 0:00:20]}  Rh4 {[%clk 0:01:51]} 30. Rc5 {[%clk 0:00:17]}  b6 {[%clk 0:01:38]} 31. Rxd5 {[%clk 0:00:13]}  Kg7 {[%clk 0:01:38]} 32. Rc1 {[%clk 0:00:11]}  Rxh2 {[%clk 0:01:35]} 33. Rc7+ {[%clk 0:00:10]}  Kh6 {[%clk 0:01:35]} 34. Nf3 {[%clk 0:00:06]}  Ne4+ {[%clk 0:01:28]} 35. Kg1 {[%clk 0:00:06]}  Rxg2+ {[%clk 0:01:29]} 36. Kxg2 {[%clk 0:00:03]}  Qg4+ {[%clk 0:01:29]} 37. Kh2 {[%clk 0:00:04]}  Qg3+ {[%clk 0:01:29]} 38. Kh1 {[%clk 0:00:03]}  Qxf3+ {[%clk 0:01:30]} 39. Kh2 {[%clk 0:00:03]}  Qf2+ {[%clk 0:01:30]} 40. Kh1 {[%clk 0:00:03]}  Ng3# {[%clk 0:01:30]} 0-1


[Site "https://www.chess.com"]

[Event "Titled Tuesday Blitz June 27 Late 2023"]
[White "Rasulov, Vugar"]
[Black "Mihajlov, Sebastian"]
[WhiteFideId "13402390"]
[BlackFideId "1512110"]
[WhiteElo "2937"]
[BlackElo "2733"]
[Result "1/2-1/2"]
[Round "7"]
[TimeControl "180+2"]
[Date "2023.06.27"]
[WhiteClock "0:00:07"]
[BlackClock "0:00:14"]
[Board "12"]

1. e4 {[%clk 0:03:00]}  e6 {[%clk 0:02:59]} 2. d3 {[%clk 0:02:59]}  d5 {[%clk 0:03:00]} 3. Nd2 {[%clk 0:03:00]}  Nc6 {[%clk 0:03:00]} 4. g3 {[%clk 0:02:59]}  e5 {[%clk 0:02:57]} 5. exd5 {[%clk 0:02:53]}  Qxd5 {[%clk 0:02:58]} 6. Ngf3 {[%clk 0:02:53]}  f6 {[%clk 0:02:57]} 7. Bg2 {[%clk 0:02:53]}  Be6 {[%clk 0:02:58]} 8. O-O {[%clk 0:02:52]}  Qd7 {[%clk 0:02:58]} 9. a3 {[%clk 0:02:38]}  a5 {[%clk 0:02:56]} 10. Re1 {[%clk 0:02:35]}  Bc5 {[%clk 0:02:51]} 11. Nb3 {[%clk 0:02:25]}  Bxb3 {[%clk 0:02:38]} 12. cxb3 {[%clk 0:02:26]}  Nge7 {[%clk 0:02:39]} 13. Qc2 {[%clk 0:02:12]}  Bb6 {[%clk 0:02:36]} 14. Be3 {[%clk 0:02:11]}  Bxe3 {[%clk 0:02:35]} 15. fxe3 {[%clk 0:02:11]}  O-O-O {[%clk 0:02:32]} 16. Rad1 {[%clk 0:02:08]}  Kb8 {[%clk 0:02:31]} 17. d4 {[%clk 0:01:57]}  Qg4 {[%clk 0:02:20]} 18. dxe5 {[%clk 0:01:50]}  fxe5 {[%clk 0:02:16]} 19. Rxd8+ {[%clk 0:01:46]}  Rxd8 {[%clk 0:02:15]} 20. Qxh7 {[%clk 0:01:42]}  e4 {[%clk 0:02:00]} 21. Nd4 {[%clk 0:01:41]}  Nxd4 {[%clk 0:01:56]} 22. exd4 {[%clk 0:01:42]}  Nf5 {[%clk 0:01:34]} 23. Bxe4 {[%clk 0:01:22]}  Nxg3 {[%clk 0:01:12]} 24. hxg3 {[%clk 0:01:03]}  Qxg3+ {[%clk 0:01:13]} 25. Kf1 {[%clk 0:01:04]}  Rf8+ {[%clk 0:01:13]} 26. Ke2 {[%clk 0:01:04]}  Rf2+ {[%clk 0:01:13]} 27. Kd1 {[%clk 0:01:04]}  Qxb3+ {[%clk 0:01:08]} 28. Bc2 {[%clk 0:01:03]}  Qxb2 {[%clk 0:00:54]} 29. Qd3 {[%clk 0:01:01]}  Rf4 {[%clk 0:00:43]} 30. Re4 {[%clk 0:00:54]}  Rf2 {[%clk 0:00:31]} 31. d5 {[%clk 0:00:49]}  Qa1+ {[%clk 0:00:29]} 32. Bb1 {[%clk 0:00:49]}  Rb2 {[%clk 0:00:28]} 33. Kc1 {[%clk 0:00:43]}  Rh2 {[%clk 0:00:24]} 34. Re1 {[%clk 0:00:27]}  Qb2+ {[%clk 0:00:20]} 35. Kd1 {[%clk 0:00:27]}  Rh4 {[%clk 0:00:20]} 36. Qc2 {[%clk 0:00:17]}  Rd4+ {[%clk 0:00:19]} 37. Ke2 {[%clk 0:00:17]}  Qxa3 {[%clk 0:00:18]} 38. Rf1 {[%clk 0:00:13]}  Qe7+ {[%clk 0:00:18]} 39. Kf3 {[%clk 0:00:10]}  Qf6+ {[%clk 0:00:17]} 40. Qf5 {[%clk 0:00:10]}  Qxf5+ {[%clk 0:00:13]} 41. Bxf5 {[%clk 0:00:11]}  Rxd5 {[%clk 0:00:14]} 42. Ke4 {[%clk 0:00:12]}  c6 {[%clk 0:00:13]} 43. Rg1 {[%clk 0:00:12]}  Rb5 {[%clk 0:00:13]} 44. Rxg7 {[%clk 0:00:12]}  Rb4+ {[%clk 0:00:13]} 45. Kd3 {[%clk 0:00:12]}  Ka7 {[%clk 0:00:12]} 46. Kc3 {[%clk 0:00:12]}  Rb5 {[%clk 0:00:10]} 47. Bc8 {[%clk 0:00:10]}  Rb4 {[%clk 0:00:10]} 48. Bd7 {[%clk 0:00:10]}  Kb6 {[%clk 0:00:10]} 49. Bc8 {[%clk 0:00:09]}  Ka7 {[%clk 0:00:10]} 50. Bd7 {[%clk 0:00:10]}  Kb6 {[%clk 0:00:11]} 51. Bh3 {[%clk 0:00:08]}  Kc5 {[%clk 0:00:10]} 52. Rg5+ {[%clk 0:00:07]}  Kb6 {[%clk 0:00:10]} 53. Be6 {[%clk 0:00:07]}  Rh4 {[%clk 0:00:10]} 54. Rg7 {[%clk 0:00:07]}  Rb4 {[%clk 0:00:08]} 55. Bc4 {[%clk 0:00:07]}  Kc5 {[%clk 0:00:07]} 56. Bd3 {[%clk 0:00:07]}  b5 {[%clk 0:00:07]} 57. Rg5+ {[%clk 0:00:06]}  Kb6 {[%clk 0:00:07]} 58. Rg6 {[%clk 0:00:07]}  Rh4 {[%clk 0:00:07]} 59. Bf5 {[%clk 0:00:08]}  Rc4+ {[%clk 0:00:06]} 60. Kb2 {[%clk 0:00:07]}  a4 {[%clk 0:00:07]} 61. Be6 {[%clk 0:00:07]}  Rc5 {[%clk 0:00:06]} 62. Bd7 {[%clk 0:00:05]}  b4 {[%clk 0:00:07]} 63. Be6 {[%clk 0:00:05]}  Kb5 {[%clk 0:00:07]} 64. Bg4 {[%clk 0:00:05]}  a3+ {[%clk 0:00:07]} 65. Kb1 {[%clk 0:00:05]}  b3 {[%clk 0:00:07]} 66. Be2+ {[%clk 0:00:05]}  Kb4 {[%clk 0:00:07]} 67. Rg4+ {[%clk 0:00:06]}  Kc3 {[%clk 0:00:07]} 68. Rg3+ {[%clk 0:00:06]}  Kb4 {[%clk 0:00:04]} 69. Rg4+ {[%clk 0:00:06]}  Kc3 {[%clk 0:00:03]} 70. Rg3+ {[%clk 0:00:07]}  Kd2 {[%clk 0:00:03]} 71. Rxb3 {[%clk 0:00:06]}  Kxe2 {[%clk 0:00:02]} 72. Rxa3 {[%clk 0:00:07]}  Kd2 {[%clk 0:00:03]} 73. Rh3 {[%clk 0:00:05]}  Rb5+ {[%clk 0:00:03]} 74. Ka2 {[%clk 0:00:06]}  c5 {[%clk 0:00:04]} 75. Rh2+ {[%clk 0:00:06]}  Kd3 {[%clk 0:00:04]} 76. Rh3+ {[%clk 0:00:07]}  Kd4 {[%clk 0:00:05]} 77. Rh4+ {[%clk 0:00:07]}  Kc3 {[%clk 0:00:05]} 78. Rh3+ {[%clk 0:00:08]}  Kd2 {[%clk 0:00:06]} 79. Rh2+ {[%clk 0:00:08]}  Ke3 {[%clk 0:00:06]} 80. Rh3+ {[%clk 0:00:08]}  Kd4 {[%clk 0:00:05]} 81. Rh4+ {[%clk 0:00:08]}  Kd5 {[%clk 0:00:05]} 82. Rh5+ {[%clk 0:00:09]}  Kc6 {[%clk 0:00:06]} 83. Rh6+ {[%clk 0:00:09]}  Kb7 {[%clk 0:00:07]} 84. Rh5 {[%clk 0:00:09]}  Kb6 {[%clk 0:00:08]} 85. Rh6+ {[%clk 0:00:08]}  Ka5 {[%clk 0:00:08]} 86. Rh4 {[%clk 0:00:06]}  Rb4 {[%clk 0:00:09]} 87. Rxb4 {[%clk 0:00:05]}  Kxb4 {[%clk 0:00:09]} 88. Kb2 {[%clk 0:00:05]}  c4 {[%clk 0:00:10]} 89. Kc2 {[%clk 0:00:06]}  c3 {[%clk 0:00:11]} 90. Kc1 {[%clk 0:00:06]}  Kb3 {[%clk 0:00:12]} 91. Kb1 {[%clk 0:00:06]}  c2+ {[%clk 0:00:13]} 92. Kc1 {[%clk 0:00:07]}  Kc3 {[%clk 0:00:14]} 1/2-1/2


[Site "https://www.chess.com"]

[Event "Titled Tuesday Blitz June 27 Late 2023"]
[White "Firouzja, Alireza"]
[Black "Mekhitarian, Krikor Sevag"]
[WhiteFideId "12573981"]
[BlackFideId "2107660"]
[WhiteElo "3108"]
[BlackElo "2863"]
[Result "1/2-1/2"]
[Round "7"]
[TimeControl "180+2"]
[Date "2023.06.27"]
[WhiteClock "0:00:08"]
[BlackClock "0:00:11"]
[Board "15"]

1. d4 {[%clk 0:02:38]}  Nf6 {[%clk 0:02:59]} 2. Bg5 {[%clk 0:02:38]}  d5 {[%clk 0:02:58]} 3. e3 {[%clk 0:02:38]}  c5 {[%clk 0:02:54]} 4. Bxf6 {[%clk 0:02:37]}  gxf6 {[%clk 0:02:54]} 5. dxc5 {[%clk 0:02:38]}  e6 {[%clk 0:02:51]} 6. c4 {[%clk 0:02:38]}  dxc4 {[%clk 0:02:50]} 7. Nd2 {[%clk 0:02:38]}  c3 {[%clk 0:02:43]} 8. bxc3 {[%clk 0:02:39]}  Bxc5 {[%clk 0:02:39]} 9. Qh5 {[%clk 0:02:39]}  Be7 {[%clk 0:02:37]} 10. Ngf3 {[%clk 0:02:38]}  Nd7 {[%clk 0:02:33]} 11. Nd4 {[%clk 0:02:34]}  O-O {[%clk 0:02:13]} 12. Bd3 {[%clk 0:02:29]}  f5 {[%clk 0:02:13]} 13. g4 {[%clk 0:02:29]}  Nf6 {[%clk 0:02:13]} 14. Qh6 {[%clk 0:02:29]}  Kh8 {[%clk 0:01:39]} 15. h3 {[%clk 0:01:03]}  Rg8 {[%clk 0:01:35]} 16. N2f3 {[%clk 0:01:02]}  Rg6 {[%clk 0:01:16]} 17. Qf4 {[%clk 0:01:02]}  Nd5 {[%clk 0:01:13]} 18. Qh2 {[%clk 0:01:03]}  Bd6 {[%clk 0:01:01]} 19. Ne5 {[%clk 0:01:03]}  Rg7 {[%clk 0:00:53]} 20. Nb5 {[%clk 0:00:42]}  Bb8 {[%clk 0:00:43]} 21. Rd1 {[%clk 0:00:21]}  f6 {[%clk 0:00:40]} 22. c4 {[%clk 0:00:04]}  Bxe5 {[%clk 0:00:40]} 23. f4 {[%clk 0:00:04]}  Nxe3 {[%clk 0:00:36]} 24. Rd2 {[%clk 0:00:04]}  Bb8 {[%clk 0:00:29]} 25. Qf2 {[%clk 0:00:03]}  a6 {[%clk 0:00:27]} 26. Bxf5 {[%clk 0:00:02]}  Qe7 {[%clk 0:00:23]} 27. Qxe3 {[%clk 0:00:02]}  axb5 {[%clk 0:00:23]} 28. Bb1 {[%clk 0:00:02]}  bxc4 {[%clk 0:00:22]} 29. Qe4 {[%clk 0:00:01]}  Ra5 {[%clk 0:00:15]} 30. Re2 {[%clk 0:00:01]}  Bd6 {[%clk 0:00:11]} 31. O-O {[%clk 0:00:01]}  f5 {[%clk 0:00:08]} 32. Qxc4 {[%clk 0:00:02]}  Rc5 {[%clk 0:00:07]} 33. Qd4 {[%clk 0:00:02]}  fxg4 {[%clk 0:00:07]} 34. hxg4 {[%clk 0:00:02]}  Rd5 {[%clk 0:00:07]} 35. Qc3 {[%clk 0:00:02]}  Qc7 {[%clk 0:00:07]} 36. Qf3 {[%clk 0:00:02]}  Qc5+ {[%clk 0:00:06]} 37. Kg2 {[%clk 0:00:02]}  Qc6 {[%clk 0:00:05]} 38. Be4 {[%clk 0:00:01]}  Qc5 {[%clk 0:00:06]} 39. Bxd5 {[%clk 0:00:02]}  Qxd5 {[%clk 0:00:06]} 40. Qxd5 {[%clk 0:00:02]}  exd5 {[%clk 0:00:07]} 41. g5 {[%clk 0:00:02]}  Bf5 {[%clk 0:00:07]} 42. Rd1 {[%clk 0:00:02]}  Bxf4 {[%clk 0:00:05]} 43. Rxd5 {[%clk 0:00:02]}  Rxg5+ {[%clk 0:00:05]} 44. Kf3 {[%clk 0:00:02]}  Bg4+ {[%clk 0:00:05]} 45. Kxf4 {[%clk 0:00:03]}  Rxd5 {[%clk 0:00:06]} 46. Kxg4 {[%clk 0:00:03]}  Ra5 {[%clk 0:00:06]} 47. Re7 {[%clk 0:00:03]}  b6 {[%clk 0:00:05]} 48. Rb7 {[%clk 0:00:03]}  Rb5 {[%clk 0:00:05]} 49. a4 {[%clk 0:00:02]}  Ra5 {[%clk 0:00:06]} 50. Rxb6 {[%clk 0:00:02]}  Rxa4+ {[%clk 0:00:06]} 51. Kg5 {[%clk 0:00:03]}  Ra7 {[%clk 0:00:07]} 52. Kh6 {[%clk 0:00:03]}  Ra8 {[%clk 0:00:07]} 53. Re6 {[%clk 0:00:02]}  Rg8 {[%clk 0:00:07]} 54. Re7 {[%clk 0:00:02]}  Rg6+ {[%clk 0:00:07]} 55. Kh5 {[%clk 0:00:03]}  Rg7 {[%clk 0:00:08]} 56. Re6 {[%clk 0:00:03]}  Rf7 {[%clk 0:00:07]} 57. Kh6 {[%clk 0:00:03]}  Rf8 {[%clk 0:00:08]} 58. Re7 {[%clk 0:00:03]}  Rf6+ {[%clk 0:00:08]} 59. Kg5 {[%clk 0:00:04]}  Rg6+ {[%clk 0:00:09]} 60. Kf5 {[%clk 0:00:04]}  Kg8 {[%clk 0:00:10]} 61. Rd7 {[%clk 0:00:04]}  Rg1 {[%clk 0:00:09]} 62. Kf6 {[%clk 0:00:04]}  Rf1+ {[%clk 0:00:09]} 63. Kg5 {[%clk 0:00:05]}  Rg1+ {[%clk 0:00:09]} 64. Kh6 {[%clk 0:00:05]}  Rh1+ {[%clk 0:00:10]} 65. Kg5 {[%clk 0:00:05]}  Rg1+ {[%clk 0:00:10]} 66. Kh6 {[%clk 0:00:06]}  Rh1+ {[%clk 0:00:09]} 67. Kg5 {[%clk 0:00:06]}  Ra1 {[%clk 0:00:08]} 68. Kh6 {[%clk 0:00:06]}  Ra6+ {[%clk 0:00:08]} 69. Kh5 {[%clk 0:00:07]}  Rg6 {[%clk 0:00:09]} 70. Rd8+ {[%clk 0:00:07]}  Kg7 {[%clk 0:00:09]} 71. Rd7+ {[%clk 0:00:07]}  Kg8 {[%clk 0:00:10]} 72. Rd8+ {[%clk 0:00:07]}  Kg7 {[%clk 0:00:10]} 73. Rd7+ {[%clk 0:00:08]}  Kg8 {[%clk 0:00:11]} 1/2-1/2


[Site "https://www.chess.com"]